{"text_format":"1","workbook":"xlsx","n_sheets":3,"sheets":["Sheet1","Sheet2","Sheet3"],"not_rendered":{"charts":0,"images":0,"macros":0,"external_links":0,"defined_names":2,"comments":0,"pivot_tables":0},"unopened":[],"bounds":{"document_bytes":16777216,"sheet_cells":100000,"rows_first":2000,"rows_last":500,"rows_between":2000,"halvings":0,"cell_chars":16384,"cell_head_chars":4096},"cells_cut":0,"cells_raw":0,"read":"whole","date_system":"1900"}

{"sheet":"Sheet1","index":0,"n_rows":101,"n_cols":11,"rows_kept":101,"cut":false,"hidden":false,"merged":[[98,3,98,5]]}
["                                                                    USDA - RUS",null,"Title  of  Information  Document",null,null,null,null,null,"OMB  No."]
[null,null," ",null,null,null,null,null,null,"0572-0112"]
[" SUMMARY  OF  INFORMATION  COLLECTION",null,"7 CFR 1775 Technical Assistance Programs",null,null,null,null,null,"Date  Prepared"]
[null,null,null,null,null,null,null,null,null,"April 7th, 2020"]
[" INSTRUCTIONS:"," ",null,null,">","(f)  TOTAL",null,"(h)  TOTAL",null," "]
["Use this form when a single information collection document involves multiple reporting and                  ",null,null,null,">","-","= (e)  Average","-","= (g)  Average","-","= (j)  Average"]
["  recordkeeping requirements.  ",null,null,null,">","(d)  TOTAL",null,"(f)  TOTAL",null,"(i)  TOTAL"]
["         IDENTIFICATION  OF  REPORTING  AND  RECORDKEEPPING  REQUIREMENTS",null,null,null,null,null,"ANNUAL  BURDEN"]
[null,null,"FORM",null,null,"REPORTS",null,null,null,"RECORDS"]
[null,null,"NO(s)","NO.  OF","NO.  OF","TOTAL","HOURS","TOTAL","NO.  OF","ANNUAL","TOTAL"]
["SECTION  OF",null,"(If  \"none\"","RESPON-","RESPONSES","ANNUAL","PER","HOURS","RECORD-","HOURS  PER","RECORD-"]
["REGULATIONS","DESCRIPTION","so  state)","DENTS","PER","RESPONSES","RESPONSE","(Col.  f  &  g)","KEEPERS","RECORD-","KEEPING"]
[null,null,null,null,"RESPON-","(Col.  d  &  e)",null,null,null,"KEEPER","HOURS"]
[null,null,null,null,"DENT",null,null,null,null,null,"(Col.  i  &  j)"]
["(a)","(b)","(c)","(d)","(e)","(f)","(g)","(h)","(i)","(j)","(k)"]
[null,"Items Cleared With This Package*"]
[]
[null,"Initial Application/Application Process"]
[]
["1775.10(c)(6)","Documentation of assistance provided to Rural Development employees","Written",65,1,{"$f":"SUM(D20*E20)","v":65},0.25,{"$f":"SUM(F20*G20)","v":16.25}]
[]
["1775.10(c)(9)","Indirect Cost Agreement","Written",65,1,{"$f":"SUM(D22*E22)","v":65},1,{"$f":"SUM(F22*G22)","v":65}]
[]
["1775.10(c)(10)","Statement of Compliance , Title VI of Civil Rights Act of 1964","Written",65,1,{"$f":"SUM(D24*E24)","v":65},0.5,{"$f":"SUM(F24*G24)","v":32.5}]
[]
["1775.10","Statement concerning assistance under the National Forest Service-Dependent Rural Communities Economic Diversification Act","Written",65,1,{"$f":"SUM(D26*E26)","v":65},1,{"$f":"SUM(F26*G26)","v":65}]
[]
["1775.10(d)(1)","Legal Authority and Responsibility","Written",65,1,{"$f":"SUM(D28*E28)","v":65},0.25,{"$f":"SUM(F28*G28)","v":16.25}]
[]
["1775.10(d)(2)","Evidence of Tax Exempt Status","Written",65,1,{"$f":"SUM(D30*E30)","v":65},0.25,{"$f":"SUM(F30*G30)","v":16.25}]
[]
["1775.10(d)(3)","Narrative","Written"]
[null,"Initial Submission",null,65,1,{"$f":"SUM(D33*E33)","v":65},2,{"$f":"SUM(F33*G33)","v":130}]
[null,"Revised Submission",null,53,1,{"$f":"SUM(D34*E34)","v":53},2,106]
[null," ",null,null,null," ",null," "]
["1775.10(d)(8)","Scope of Work","Written"]
[null,"Initial Submission",null,65,1,{"$f":"SUM(D37*E37)","v":65},12,{"$f":"SUM(F37*G37)","v":780}]
[null,"Revised Submission",null,53,1,{"$f":"SUM(D38*E38)","v":53},12,636]
[]
["1775.10(d)(6)","Budget justification","Written"]
[null,"Initial Submission",null,65,1,{"$f":"SUM(D41*E41)","v":65},10,{"$f":"SUM(F41*G41)","v":650}]
[null,"Revised Submission",null,53,1,{"$f":"SUM(D42*E42)","v":53},10,530]
[]
["1775.10(d)(4)","Latest Financial Information","Written",65,1,{"$f":"SUM(D44*E44)","v":65},1,{"$f":"SUM(F44*G44)","v":65}]
[]
["1775.10(d)(7)","Evidence of Financial Management System","Written",65,1,{"$f":"SUM(D46*E46)","v":65},0.25,{"$f":"SUM(F46*G46)","v":16.25}]
[]
[null,"Post-Application"]
[1775.13,"Grant Agreement","RUS Guide 1775-1",53,1,{"$f":"SUM(D49*E49)","v":53},2,{"$f":"SUM(F49*G49)","v":106}]
[]
[1775.2,"Project Performance Report","Written",53,4,{"$f":"SUM(D51*E51)","v":212},12,{"$f":"SUM(F51*G51)","v":2544}]
[]
[1775.21,"Audit","Written",9,1,{"$f":"SUM(D53*E53)","v":9},3,{"$f":"SUM(F53*G53)","v":27}]
[]
[1775.21,"Financial Statements","Written",42,1,{"$f":"SUM(D55*E55)","v":42},1,{"$f":"SUM(F55*G55)","v":42}]
[]
["1775.10(c)(3)","Certification Regarding Debarment, Suspension, and Other Responsibility Matters - Primary Covered Transactions","AD-1047 (0505-0027)",65,1,{"$f":"SUM(D57*E57)","v":65},0.25,{"$f":"SUM(F57*G57)","v":16.25}]
[]
["1775.10(c)(5)","Certification Regarding Debarment","AD-1048 (0505-0027)",65,1,{"$f":"SUM(D59*E59)","v":65},0.25,{"$f":"SUM(F59*G59)","v":16.25}]
[]
["1775.10(c)(4)","Certification Regarding Drug-Free Workplace Requirements (Grants) Alternative I - for Grantees Other Than Individuals","AD-1049 (0505-0027)",65,1,{"$f":"SUM(D61*E61)","v":65},0.25,{"$f":"SUM(F61*G61)","v":16.25}]
[]
[null,"Total Hours This Package",null,65,null,{"$f":"SUM(F57:F61,F44:F55,F41,F37,F20:F33,F42+F38+F34)","v":1385},null,{"$f":"SUM(H57:H61,H44:H55,H41,H37,H20:H33,H42+H38+H34)","v":5892.25},null,"PAGE 1"]
[null,null,null,null,null,{"$f":"F20+F22+F24+F26+F28+F30+F33+F34+F37+F38+F41+F42+F44+F46+F49+F51+F53+F55+F57+F59+F61","v":1385},null,{"$f":"H20+H22+H24+H26+H28+H30+H33+H34+H37+H38+H41+H42+H44+H46+H49+H51+H53+H55+H57+H59+H61","v":5892.25}]
[null,"Items Cleared Under Other Packages"]
[]
[null,"Representations Regarding Felony Conviction and Tax Delinquent Status for Corporate Applicants","AD-3030 (0505-0025)",65,1,{"$f":"SUM(D67*E67)","v":65},0.25,{"$f":"SUM(F67*G67)","v":16.25}]
[]
[null,"Assurances Regarding Felony Conviction and Tax Deilnquent Status for corporate applicants","AD-3031 (0505-0025)",43,1,43,0.05,2.15]
[]
["1775.10(c)(1)","Application for Federal Assistance (Non-construction Programs)","SF-424",null,null,null,null,null," "," "," "]
[null,"Initial Submission","(4040-0004)",65,1,142,0.75,{"$f":"SUM(F72*G72)","v":106.5},null,null," "]
[null,"Revised Submission",null,53,1,26,0.75,19.5]
[]
["1775.10(c)(2)","Budget Information--Non-Construction Programs","SF-424A",null,null,null,null,null," "," "," "]
[null,"Initial Submission","(4040-0006)",65,1,142,3,{"$f":"SUM(F76*G76)","v":426}]
[null,"Revised Submission",null,53,1,26,3,78]
[]
["1775.10(c)(2)","Assurances--Non-construction Programs","SF-424B"]
[" ","Initial Submission","(4040-0007)",65,1,142,0.25,{"$f":"SUM(F80*G80)","v":35.5}," "," "," "]
[null,"Revised Submission",null,53,1,26,0.25,6.5]
[]
["1775.10(c)(8)","Equal Opportunity Agreement","RD 400-1",53,1,{"$f":"SUM(D83*E83)","v":53},0.17,{"$f":"SUM(F83*G83)","v":9.01}]
[null," ","(0575-0018)",null,null," ",null," "]
[]
["1775.10(c)(7)","Assurance Agreement","RD 400-4",53,1,{"$f":"SUM(D86*E86)","v":53},0.25,{"$f":"SUM(F86*G86)","v":13.25}]
[null,null,"(0575-0018)",null,null," ",null," "]
[]
["1775.18(a)","Request for Advance or Reimbursement (Corporation)","SF-270",53,12,{"$f":"SUM(D89*E89)","v":636},1,{"$f":"SUM(F89*G89)","v":636}]
[" ",null,"(4040-0012)"]
[]
["1775.10(c)(11)","Disclosure of Lobbying Activities","SF LLL",43,1,{"$f":"SUM(D92*E92)","v":43},0.25,{"$f":"SUM(F92*G92)","v":10.75}]
[null,null,"(4040-0013)"]
[]
[null,"Federal Financial Report","SF-425",53,4,{"$f":"SUM(D95*E95)","v":212},1.5,{"$f":"SUM(F95*G95)","v":318}]
[null,null,"(4040-0014)"]
[]
[" RUS  Form  36   (07-91)",null,null,null,null,null,null,null,null,"Page __2__  of __2__"]
[null,null,null,"Average Response Hours",null,null,{"$f":"AVERAGE(G83:G96,G80,G76,G72,G67:G69,G57:G61,G41:G55,G37,G37,G37,G33,G20:G30)","v":2.8619354838709676}]
["*Note: Applications: Private sector responses = 61. American Indian responses = 4. Total = 65"]
["** Note: Obligations/Approvals: Private sector responses = 49; Tribal responses = 4; Total = 53"]

{"sheet":"Sheet2","index":1,"n_rows":0,"n_cols":0,"rows_kept":0,"cut":false,"hidden":false,"merged":[]}

{"sheet":"Sheet3","index":2,"n_rows":0,"n_cols":0,"rows_kept":0,"cut":false,"hidden":false,"merged":[]}